[Event "TePe Sigeman Chess Tournament 2026"]
[Site "Elite Plaza Hotel, Gustav Adolfs Torg 49, Malmo, Sweden"]
[Date "2026.05.02"]
[Round "2.4"]
[White "Van Foreest, Jorden"]
[Black "Zhu, Jiner"]
[Result "1/2-1/2"]
[TimeControl "90 minutes for 40 moves + 30 minutes for the rest of the game + 30 seconds per move from move one."]
[WhiteTitle "GM"]
[BlackTitle "GM"]
[WhiteFideId "1039784"]
[BlackFideId "8608059"]
[WhiteElo "2735"]
[BlackElo "2546"]

1. d4 {[%clk 01:30:56]} {[%emt 00:00:03]} Nf6 {[%clk 01:30:54]} {[%emt
00:00:07]} 2. Nf3 {[%clk 01:31:01]} {[%emt 00:00:25]} d5 {[%clk 01:31:06]}
{[%emt 00:00:18]} 3. Bf4 {[%clk 01:30:50]} {[%emt 00:00:40]} c5 {[%clk
01:29:46]} {[%emt 00:01:52]} 4. e3 {[%clk 01:31:07]} {[%emt 00:00:12]} Nc6
{[%clk 01:30:08]} {[%emt 00:00:08]} 5. Nbd2 {[%clk 01:31:27]} {[%emt 00:00:09]}
Nh5 {[%clk 01:29:48]} {[%emt 00:00:51]} 6. dxc5 {[%clk 01:30:43]} {[%emt
00:01:14]} Nxf4 {[%clk 01:30:09]} {[%emt 00:00:10]} 7. exf4 {[%clk 01:31:03]}
{[%emt 00:00:09]} g6 {[%clk 01:30:32]} {[%emt 00:00:08]} 8. c3 {[%clk
01:29:56]} {[%emt 00:01:37]} Bh6 {[%clk 01:30:35]} {[%emt 00:00:28]} 9. g3
{[%clk 01:27:50]} {[%emt 00:02:35]} O-O {[%clk 01:30:55]} {[%emt 00:00:10]} 10.
Nb3 {[%clk 01:28:09]} {[%emt 00:00:11]} Bg7 {[%clk 01:00:13]} {[%emt 00:31:13]}
11. Bb5 {[%clk 01:07:35]} {[%emt 00:21:04]} Bh3 {[%clk 00:52:25]} {[%emt
00:08:17]} 12. Ng5 {[%clk 01:06:18]} {[%emt 00:01:47]} Bf5 {[%clk 00:52:45]}
{[%emt 00:00:11]} 13. h4 {[%clk 01:03:00]} {[%emt 00:03:48]} d4 {[%clk
00:34:51]} {[%emt 00:18:24]} 14. Bxc6 {[%clk 01:00:02]} {[%emt 00:03:27]} bxc6
{[%clk 00:35:14]} {[%emt 00:00:08]} 15. Nxd4 {[%clk 00:57:12]} {[%emt
00:03:20]} Qd5 {[%clk 00:31:12]} {[%emt 00:04:31]} 16. O-O {[%clk 00:54:51]}
{[%emt 00:02:52]} Qxc5 {[%clk 00:26:16]} {[%emt 00:05:26]} 17. Nxf5 {[%clk
00:54:41]} {[%emt 00:00:40]} Qxf5 {[%clk 00:26:40]} {[%emt 00:00:06]} 18. Qe2
{[%clk 00:49:41]} {[%emt 00:05:29]} Rab8 {[%clk 00:24:18]} {[%emt 00:02:53]} 19.
Rad1 {[%clk 00:49:45]} {[%emt 00:00:26]} Qb5 {[%clk 00:17:17]} {[%emt
00:07:31]} 20. Rd2 {[%clk 00:49:56]} {[%emt 00:00:19]} Qxe2 {[%clk 00:17:09]}
{[%emt 00:00:39]} 21. Rxe2 {[%clk 00:50:20]} {[%emt 00:00:06]} h6 {[%clk
00:16:11]} {[%emt 00:01:28]} 22. Nf3 {[%clk 00:49:44]} {[%emt 00:01:05]} Rfd8
{[%clk 00:15:55]} {[%emt 00:00:47]} 23. Rfe1 {[%clk 00:47:43]} {[%emt
00:02:31]} e6 {[%clk 00:14:38]} {[%emt 00:01:47]} 24. Rc2 {[%clk 00:47:58]}
{[%emt 00:00:14]} Rd5 {[%clk 00:12:00]} {[%emt 00:03:09]} 25. Re4 {[%clk
00:46:03]} {[%emt 00:02:24]} Kf8 {[%clk 00:10:29]} {[%emt 00:02:01]} 26. Ra4
{[%clk 00:45:57]} {[%emt 00:00:36]} Rb7 {[%clk 00:08:51]} {[%emt 00:02:08]} 27.
Nd2 {[%clk 00:44:44]} {[%emt 00:01:43]} Ke8 {[%clk 00:08:05]} {[%emt 00:01:17]}
28. Nb3 {[%clk 00:43:53]} {[%emt 00:01:20]} Kd7 {[%clk 00:04:29]} {[%emt
00:04:07]} 29. Ra6 {[%clk 00:42:50]} {[%emt 00:01:33]} Bf8 {[%clk 00:04:04]}
{[%emt 00:00:55]} 30. Kg2 {[%clk 00:42:28]} {[%emt 00:00:52]} c5 {[%clk
00:02:42]} {[%emt 00:01:53]} 31. Ra4 {[%clk 00:39:22]} {[%emt 00:03:36]} Kc8
{[%clk 00:01:53]} {[%emt 00:01:19]} 32. Re2 {[%clk 00:39:41]} {[%emt 00:00:10]}
Bd6 {[%clk 00:01:32]} {[%emt 00:00:51]} 33. Ree4 {[%clk 00:39:06]} {[%emt
00:01:05]} Kb8 {[%clk 00:01:14]} {[%emt 00:00:48]} 34. Kf3 {[%clk 00:36:51]}
{[%emt 00:02:45]} Rb6 {[%clk 00:01:07]} {[%emt 00:00:38]} 35. Re2 {[%clk
00:31:11]} {[%emt 00:06:09]} a6 {[%clk 00:00:43]} {[%emt 00:00:55]} 36. Na5
{[%clk 00:31:22]} {[%emt 00:00:18]} Bc7 {[%clk 00:00:50]} {[%emt 00:00:23]} 37.
Nc4 {[%clk 00:27:40]} {[%emt 00:04:12]} Rc6 {[%clk 00:01:14]} {[%emt 00:00:06]}
38. Ne3 {[%clk 00:24:50]} {[%emt 00:03:19]} Rd3 {[%clk 00:01:26]} {[%emt
00:00:19]} 39. Re1 {[%clk 00:23:14]} {[%emt 00:02:06]} Rd2 {[%clk 00:01:00]}
{[%emt 00:00:56]} 40. Nc4 {[%clk 00:23:33]} {[%emt 00:00:10]} Rd5 {[%clk
00:00:49]} {[%emt 00:00:40]} 41. Ke2 {[%clk 00:23:56]} {[%emt 00:00:07]} Ka7
{[%clk 00:27:13]} {[%emt 00:04:07]} 42. Ne3 {[%clk 00:54:15]} {[%emt 00:00:10]}
Rd8 {[%clk 00:27:05]} {[%emt 00:00:39]} 43. h5 {[%clk 00:53:23]} {[%emt
00:01:21]} gxh5 {[%clk 00:25:55]} {[%emt 00:01:40]} 44. Rh1 {[%clk 00:53:35]}
{[%emt 00:00:18]} Rcd6 {[%clk 00:25:54]} {[%emt 00:00:32]} 45. Kf3 {[%clk
00:46:57]} {[%emt 00:07:07]} Rd2 {[%clk 00:25:55]} {[%emt 00:00:29]} 46. b3
{[%clk 00:43:37]} {[%emt 00:03:50]} Rb2 {[%clk 00:24:44]} {[%emt 00:01:41]} 47.
Nc4 {[%clk 00:44:02]} {[%emt 00:00:05]} Rd3+ {[%clk 00:22:17]} {[%emt
00:02:58]} 48. Kg2 {[%clk 00:44:27]} {[%emt 00:00:05]} Re2 {[%clk 00:22:30]}
{[%emt 00:00:18]} 49. Kf1 {[%clk 00:21:33]} {[%emt 00:23:23]} Rc2 {[%clk
00:22:35]} {[%emt 00:00:25]} 50. Rxh5 {[%clk 00:16:51]} {[%emt 00:05:12]} Rf3
{[%clk 00:19:50]} {[%emt 00:03:15]} 51. Rh2 {[%clk 00:17:17]} {[%emt 00:00:03]}
h5 {[%clk 00:16:03]} {[%emt 00:04:18]} 52. Na3 {[%clk 00:15:32]} {[%emt
00:02:15]} Rb2 {[%clk 00:14:04]} {[%emt 00:02:29]} 53. Nb5+ {[%clk 00:15:57]}
{[%emt 00:00:06]} Kb6 {[%clk 00:14:28]} {[%emt 00:00:05]} 54. Nxc7 {[%clk
00:16:21]} {[%emt 00:00:06]} Kxc7 {[%clk 00:14:55]} {[%emt 00:00:03]} 55. Rxa6
{[%clk 00:16:37]} {[%emt 00:00:13]} Kb7 {[%clk 00:14:20]} {[%emt 00:01:05]} 56.
Ra4 {[%clk 00:16:25]} {[%emt 00:00:42]} Rxc3 {[%clk 00:13:41]} {[%emt
00:01:10]} 57. Rxh5 {[%clk 00:11:54]} {[%emt 00:05:00]} Rf3 {[%clk 00:13:56]}
{[%emt 00:00:16]} 58. Rh2 {[%clk 00:10:58]} {[%emt 00:01:26]} Rxg3 {[%clk
00:14:17]} {[%emt 00:00:08]} 59. fxg3 {[%clk 00:11:14]} {[%emt 00:00:14]} Rxh2
{[%clk 00:14:42]} {[%emt 00:00:06]} 60. g4 {[%clk 00:09:37]} {[%emt 00:02:07]}
Kc6 {[%clk 00:08:19]} {[%emt 00:06:53]} 61. g5 {[%clk 00:08:27]} {[%emt
00:01:40]} Kd5 {[%clk 00:08:30]} {[%emt 00:00:19]} 62. Ra7 {[%clk 00:07:37]}
{[%emt 00:01:20]} Ke4 {[%clk 00:08:12]} {[%emt 00:00:48]} 63. Rxf7 {[%clk
00:06:31]} {[%emt 00:01:36]} Rxa2 {[%clk 00:08:35]} {[%emt 00:00:07]} 64. g6
{[%clk 00:05:05]} {[%emt 00:01:56]} Kf3 {[%clk 00:08:59]} {[%emt 00:00:06]} 65.
Ke1 {[%clk 00:05:32]} {[%emt 00:00:03]} Ke3 {[%clk 00:06:00]} {[%emt 00:03:29]}
66. Kd1 {[%clk 00:05:56]} {[%emt 00:00:06]} Rg2 {[%clk 00:05:56]} {[%emt
00:00:35]} 67. Rf6 {[%clk 00:05:40]} {[%emt 00:00:46]} Kd3 {[%clk 00:05:17]}
{[%emt 00:01:09]} 68. Ke1 {[%clk 00:06:06]} {[%emt 00:00:03]} Ke3 {[%clk
00:05:38]} {[%emt 00:00:10]} 69. Kf1 {[%clk 00:05:41]} {[%emt 00:00:55]} Rg4
{[%clk 00:04:07]} {[%emt 00:02:01]} 70. Rxe6+ {[%clk 00:06:04]} {[%emt
00:00:07]} Kxf4 {[%clk 00:04:33]} {[%emt 00:00:04]} 71. Ke2 {[%clk 00:06:17]}
{[%emt 00:00:17]} Kf5 {[%clk 00:03:27]} {[%emt 00:01:37]} 72. Rc6 {[%clk
00:04:10]} {[%emt 00:02:37]} Rg3 {[%clk 00:03:27]} {[%emt 00:00:31]} 73. Rb6
{[%clk 00:04:36]} {[%emt 00:00:05]} Ke4 {[%clk 00:02:51]} {[%emt 00:01:05]} 74.
Kf2 {[%clk 00:04:28]} {[%emt 00:00:38]} Rg5 {[%clk 00:03:09]} {[%emt 00:00:12]}
75. Ra6 {[%clk 00:04:44]} {[%emt 00:00:14]} Kf4 {[%clk 00:02:24]} {[%emt
00:01:15]} 76. Ke2 {[%clk 00:02:17]} {[%emt 00:02:57]} Ke4 {[%clk 00:02:29]}
{[%emt 00:00:26]} 77. Rb6 {[%clk 00:01:39]} {[%emt 00:01:08]} Rg2+ {[%clk
00:02:27]} {[%emt 00:00:32]} 78. Kf1 {[%clk 00:02:03]} {[%emt 00:00:06]} Rg5
{[%clk 00:02:39]} {[%emt 00:00:18]} 79. Kf2 {[%clk 00:02:29]} {[%emt 00:00:05]}
Kf4 {[%clk 00:03:03]} {[%emt 00:00:05]} 80. Ke2 {[%clk 00:01:54]} {[%emt
00:01:05]} Ke4 {[%clk 00:03:27]} {[%emt 00:00:07]} 81. Ke1 {[%clk 00:01:54]}
{[%emt 00:00:29]} Rg1+ {[%clk 00:03:26]} {[%emt 00:00:30]} 82. Kd2 {[%clk
00:02:01]} {[%emt 00:00:23]} Kd4 {[%clk 00:03:48]} {[%emt 00:00:08]} 83. Ke2
{[%clk 00:01:33]} {[%emt 00:00:58]} Ke4 {[%clk 00:04:13]} {[%emt 00:00:05]} 84.
Re6+ {[%clk 00:01:46]} {[%emt 00:00:17]} Kd5 {[%clk 00:03:46]} {[%emt
00:00:57]} 85. Rf6 {[%clk 00:01:00]} {[%emt 00:01:15]} Ke5 {[%clk 00:04:10]}
{[%emt 00:00:07]} 86. Ra6 {[%clk 00:01:18]} {[%emt 00:00:12]} Ke4 {[%clk
00:04:31]} {[%emt 00:00:09]} 87. Kf2 {[%clk 00:01:02]} {[%emt 00:00:46]} Rg5
{[%clk 00:04:54]} {[%emt 00:00:07]} 88. Rb6 {[%clk 00:01:18]} {[%emt 00:00:14]}
Kf4 {[%clk 00:05:19]} {[%emt 00:00:05]} 89. Ke2 {[%clk 00:00:55]} {[%emt
00:00:53]} Ke4 {[%clk 00:05:42]} {[%emt 00:00:07]} 90. Kd2 {[%clk 00:01:18]}
{[%emt 00:00:06]} Kd4 {[%clk 00:05:50]} {[%emt 00:00:22]} 91. Rd6+ {[%clk
00:00:51]} {[%emt 00:00:57]} Ke5 {[%clk 00:06:15]} {[%emt 00:00:05]} 92. Rb6
{[%clk 00:01:06]} {[%emt 00:00:15]} Kd4 {[%clk 00:06:41]} {[%emt 00:00:04]} 93.
Rd6+ {[%clk 00:01:20]} {[%emt 00:00:16]} Ke5 {[%clk 00:06:23]} {[%emt
00:00:14]} 1/2-1/2

[Event "TePe Sigeman Chess Tournament 2026"]
[Site "Elite Plaza Hotel, Gustav Adolfs Torg 49, Malmo, Sweden"]
[Date "2026.05.03"]
[Round "3.1"]
[White "Erigaisi, Arjun"]
[Black "Grandelius, Nils"]
[Result "1-0"]
[TimeControl "90 minutes for 40 moves + 30 minutes for the rest of the game + 30 seconds per move from move one."]
[WhiteTitle "GM"]
[BlackTitle "GM"]
[WhiteFideId "35009192"]
[BlackFideId "1710400"]
[WhiteElo "2751"]
[BlackElo "2662"]

1. e4 {[%clk 01:30:55]} {[%emt 00:00:04]} c5 {[%clk 01:30:16]} {[%emt
00:00:43]} 2. Nf3 {[%clk 01:31:19]} {[%emt 00:00:08]} d6 {[%clk 01:30:11]}
{[%emt 00:00:35]} 3. d4 {[%clk 01:31:41]} {[%emt 00:00:07]} cxd4 {[%clk
01:30:33]} {[%emt 00:00:08]} 4. Nxd4 {[%clk 01:32:07]} {[%emt 00:00:05]} Nf6
{[%clk 01:30:52]} {[%emt 00:00:10]} 5. Nc3 {[%clk 01:32:30]} {[%emt 00:00:08]}
g6 {[%clk 01:30:29]} {[%emt 00:00:52]} 6. Be3 {[%clk 01:26:35]} {[%emt
00:06:26]} Bg7 {[%clk 01:30:31]} {[%emt 00:00:27]} 7. f3 {[%clk 01:26:57]}
{[%emt 00:00:09]} Nc6 {[%clk 01:30:45]} {[%emt 00:00:16]} 8. Qd2 {[%clk
01:25:43]} {[%emt 00:01:44]} O-O {[%clk 01:29:05]} {[%emt 00:02:10]} 9. O-O-O
{[%clk 01:20:19]} {[%emt 00:05:55]} d5 {[%clk 01:29:11]} {[%emt 00:00:23]} 10.
Nxc6 {[%clk 01:20:10]} {[%emt 00:00:39]} bxc6 {[%clk 01:29:32]} {[%emt
00:00:08]} 11. Bc4 {[%clk 01:20:35]} {[%emt 00:00:05]} e6 {[%clk 01:29:52]}
{[%emt 00:00:10]} 12. Bb3 {[%clk 01:19:45]} {[%emt 00:01:20]} Bb7 {[%clk
01:29:24]} {[%emt 00:00:58]} 13. h4 {[%clk 01:11:48]} {[%emt 00:08:28]} dxe4
{[%clk 01:13:48]} {[%emt 00:16:06]} 14. Qf2 {[%clk 01:05:45]} {[%emt 00:06:33]}
Qc7 {[%clk 01:13:07]} {[%emt 00:01:11]} 15. Nxe4 {[%clk 01:05:33]} {[%emt
00:00:43]} Nxe4 {[%clk 01:05:40]} {[%emt 00:07:56]} 16. fxe4 {[%clk 01:05:31]}
{[%emt 00:00:32]} c5 {[%clk 01:01:45]} {[%emt 00:04:25]} 17. Bxc5 {[%clk
01:03:00]} {[%emt 00:03:02]} Rfd8 {[%clk 00:57:11]} {[%emt 00:05:03]} 18. Bxa7
{[%clk 00:45:18]} {[%emt 00:18:13]} Qe5 {[%clk 00:43:42]} {[%emt 00:13:59]} 19.
c3 {[%clk 00:45:06]} {[%emt 00:00:42]} Qxe4 {[%clk 00:34:53]} {[%emt 00:09:19]}
20. Rxd8+ {[%clk 00:41:07]} {[%emt 00:04:29]} Rxd8 {[%clk 00:35:20]} {[%emt
00:00:03]} 21. Re1 {[%clk 00:41:28]} {[%emt 00:00:10]} Qxg2 {[%clk 00:24:57]}
{[%emt 00:10:53]} 22. Qxg2 {[%clk 00:41:37]} {[%emt 00:00:21]} Bxg2 {[%clk
00:25:25]} {[%emt 00:00:02]} 23. a4 {[%clk 00:41:59]} {[%emt 00:00:08]} Ra8
{[%clk 00:23:11]} {[%emt 00:02:43]} 24. Bb6 {[%clk 00:42:06]} {[%emt 00:00:24]}
Bc6 {[%clk 00:15:42]} {[%emt 00:07:59]} 25. a5 {[%clk 00:41:45]} {[%emt
00:00:51]} Bf6 {[%clk 00:16:07]} {[%emt 00:00:04]} 26. h5 {[%clk 00:41:55]}
{[%emt 00:00:20]} gxh5 {[%clk 00:16:06]} {[%emt 00:00:31]} 27. Bc2 {[%clk
00:42:13]} {[%emt 00:00:12]} Bg5+ {[%clk 00:10:13]} {[%emt 00:06:23]} 28. Kb1
{[%clk 00:42:00]} {[%emt 00:00:44]} h4 {[%clk 00:10:02]} {[%emt 00:00:41]} 29.
Be4 {[%clk 00:39:45]} {[%emt 00:02:45]} Bxe4+ {[%clk 00:09:38]} {[%emt
00:00:54]} 30. Rxe4 {[%clk 00:40:09]} {[%emt 00:00:06]} h3 {[%clk 00:09:57]}
{[%emt 00:00:12]} 31. Kc2 {[%clk 00:38:34]} {[%emt 00:02:05]} h2 {[%clk
00:05:16]} {[%emt 00:05:10]} 32. Re1 {[%clk 00:38:59]} {[%emt 00:00:05]} Bf4
{[%clk 00:03:53]} {[%emt 00:01:53]} 33. b4 {[%clk 00:36:55]} {[%emt 00:02:35]}
e5 {[%clk 00:04:01]} {[%emt 00:00:22]} 34. b5 {[%clk 00:29:05]} {[%emt
00:08:21]} e4 {[%clk 00:04:28]} {[%emt 00:00:02]} 35. a6 {[%clk 00:29:10]}
{[%emt 00:00:25]} e3 {[%clk 00:04:52]} {[%emt 00:00:05]} 36. Kd3 {[%clk
00:29:11]} {[%emt 00:00:29]} e2 {[%clk 00:02:02]} {[%emt 00:03:20]} 37. Rh1
{[%clk 00:29:16]} {[%emt 00:00:25]} Re8 {[%clk 00:01:59]} {[%emt 00:00:33]} 38.
Bf2 {[%clk 00:29:26]} {[%emt 00:00:19]} Bc7 {[%clk 00:00:57]} {[%emt 00:01:32]}
39. a7 {[%clk 00:28:50]} {[%emt 00:01:06]} Kg7 {[%clk 00:00:55]} {[%emt
00:00:32]} 40. c4 {[%clk 00:28:35]} {[%emt 00:00:46]} Bb6 {[%clk 00:00:34]}
{[%emt 00:00:51]} 41. a8=Q {[%clk 00:27:29]} {[%emt 00:01:37]} e1=N+ {[%clk
00:26:25]} {[%emt 00:04:39]} 42. Rxe1 {[%clk 00:57:23]} {[%emt 00:00:35]} 1-0

[Event "TePe Sigeman Chess Tournament 2026"]
[Site "Elite Plaza Hotel, Gustav Adolfs Torg 49, Malmo, Sweden"]
[Date "2026.05.03"]
[Round "3.2"]
[White "Woodward, Andy"]
[Black "Van Foreest, Jorden"]
[Result "1/2-1/2"]
[TimeControl "90 minutes for 40 moves + 30 minutes for the rest of the game + 30 seconds per move from move one."]
[WhiteTitle "GM"]
[BlackTitle "GM"]
[WhiteFideId "30953499"]
[BlackFideId "1039784"]
[WhiteElo "2635"]
[BlackElo "2735"]

1. d4 {[%clk 01:30:55]} {[%emt 00:00:03]} d6 {[%clk 01:30:47]} {[%emt
00:00:13]} 2. e4 {[%clk 01:28:53]} {[%emt 00:02:33]} Nf6 {[%clk 01:31:07]}
{[%emt 00:00:09]} 3. Nc3 {[%clk 01:28:57]} {[%emt 00:00:27]} e5 {[%clk
01:31:16]} {[%emt 00:00:21]} 4. Nf3 {[%clk 01:28:59]} {[%emt 00:00:28]} Nbd7
{[%clk 01:31:35]} {[%emt 00:00:11]} 5. Rg1 {[%clk 01:28:46]} {[%emt 00:00:43]}
c6 {[%clk 01:30:35]} {[%emt 00:01:30]} 6. g4 {[%clk 01:23:35]} {[%emt
00:05:41]} g6 {[%clk 01:30:56]} {[%emt 00:00:09]} 7. Be3 {[%clk 01:21:12]}
{[%emt 00:02:53]} Be7 {[%clk 01:26:58]} {[%emt 00:04:28]} 8. a3 {[%clk
01:02:58]} {[%emt 00:18:45]} h5 {[%clk 01:25:20]} {[%emt 00:02:07]} 9. gxh5
{[%clk 01:01:50]} {[%emt 00:01:37]} Rxh5 {[%clk 01:25:17]} {[%emt 00:00:33]} 10.
Rg5 {[%clk 00:47:41]} {[%emt 00:14:40]} Rxg5 {[%clk 01:05:21]} {[%emt
00:20:26]} 11. Nxg5 {[%clk 00:47:12]} {[%emt 00:00:58]} exd4 {[%clk 01:04:47]}
{[%emt 00:01:04]} 12. Bxd4 {[%clk 00:46:52]} {[%emt 00:00:50]} Nh5 {[%clk
01:02:44]} {[%emt 00:02:33]} 13. h4 {[%clk 00:43:31]} {[%emt 00:03:51]} Ne5
{[%clk 00:57:31]} {[%emt 00:05:43]} 14. Be3 {[%clk 00:42:49]} {[%emt 00:01:12]}
Ng4 {[%clk 00:55:27]} {[%emt 00:02:34]} 15. Qf3 {[%clk 00:40:40]} {[%emt
00:02:39]} f6 {[%clk 00:48:06]} {[%emt 00:07:52]} 16. Nh3 {[%clk 00:40:08]}
{[%emt 00:01:01]} Nxe3 {[%clk 00:38:41]} {[%emt 00:09:55]} 17. fxe3 {[%clk
00:40:13]} {[%emt 00:00:25]} Be6 {[%clk 00:31:28]} {[%emt 00:07:43]} 18. Nf4
{[%clk 00:37:22]} {[%emt 00:03:21]} Nxf4 {[%clk 00:31:52]} {[%emt 00:00:07]} 19.
exf4 {[%clk 00:37:46]} {[%emt 00:00:06]} Qa5 {[%clk 00:31:16]} {[%emt
00:01:06]} 20. O-O-O {[%clk 00:27:32]} {[%emt 00:10:44]} Qh5 {[%clk 00:29:23]}
{[%emt 00:02:23]} 21. Qxh5 {[%clk 00:22:26]} {[%emt 00:05:37]} gxh5 {[%clk
00:29:47]} {[%emt 00:00:06]} 22. Be2 {[%clk 00:22:43]} {[%emt 00:00:13]} Kd7
{[%clk 00:24:38]} {[%emt 00:05:38]} 23. Bxh5 {[%clk 00:21:21]} {[%emt
00:01:53]} Rh8 {[%clk 00:25:00]} {[%emt 00:00:08]} 24. Bf3 {[%clk 00:21:47]}
{[%emt 00:00:04]} Rxh4 {[%clk 00:25:17]} {[%emt 00:00:13]} 25. Ne2 {[%clk
00:22:13]} {[%emt 00:00:04]} Bc4 {[%clk 00:24:28]} {[%emt 00:01:19]} 26. Kd2
{[%clk 00:22:08]} {[%emt 00:00:35]} Bf8 {[%clk 00:20:02]} {[%emt 00:04:56]} 27.
Rh1 {[%clk 00:18:44]} {[%emt 00:03:54]} Rxh1 {[%clk 00:20:18]} {[%emt
00:00:14]} 28. Bxh1 {[%clk 00:19:11]} {[%emt 00:00:04]} Bh6 {[%clk 00:20:41]}
{[%emt 00:00:06]} 29. Bg2 {[%clk 00:19:33]} {[%emt 00:00:07]} b5 {[%clk
00:19:32]} {[%emt 00:01:40]} 30. b3 {[%clk 00:18:12]} {[%emt 00:01:52]} Bxe2
{[%clk 00:19:56]} {[%emt 00:00:05]} 31. Kxe2 {[%clk 00:18:37]} {[%emt
00:00:05]} Bxf4 {[%clk 00:20:21]} {[%emt 00:00:05]} 32. Kd3 {[%clk 00:18:57]}
{[%emt 00:00:11]} Kc7 {[%clk 00:20:36]} {[%emt 00:00:15]} 33. a4 {[%clk
00:17:21]} {[%emt 00:02:06]} a5 {[%clk 00:20:51]} {[%emt 00:00:14]} 34. c4
{[%clk 00:16:45]} {[%emt 00:01:06]} bxa4 {[%clk 00:21:14]} {[%emt 00:00:07]} 35.
bxa4 {[%clk 00:17:12]} {[%emt 00:00:04]} Kb6 {[%clk 00:21:34]} {[%emt
00:00:10]} 36. Bh3 {[%clk 00:17:37]} {[%emt 00:00:04]} Kc5 {[%clk 00:22:00]}
{[%emt 00:00:04]} 37. Bd7 {[%clk 00:18:03]} {[%emt 00:00:05]} Be5 {[%clk
00:22:24]} {[%emt 00:00:06]} 38. Be8 {[%clk 00:18:29]} {[%emt 00:00:04]} Bf4
{[%clk 00:22:48]} {[%emt 00:00:05]} 39. Bd7 {[%clk 00:18:55]} {[%emt 00:00:04]}
Be5 {[%clk 00:23:13]} {[%emt 00:00:05]} 40. Be8 {[%clk 00:19:21]} {[%emt
00:00:05]} 1/2-1/2